[Event "Early-Titled-Tuesday-Blitz-October-03-2023"]
[Site "Chess.com"]
[Date "2023.10.03"]
[Round "11"]
[White "AttilaTurzo"]
[Black "emeli_chess"]
[Result "1/2-1/2"]
[WhiteElo "2469"]
[BlackElo "2360"]
[TimeControl "180+1"]
[EndTime "10:08:13 PDT"]
[Termination "Game drawn - insufficient material"]

1. d4 {[%clk 0:02:57.6]} 1... Nf6 {[%clk 0:02:59.2]} 2. Bf4 {[%clk 0:02:55.6]}
2... d5 {[%clk 0:02:58.9]} 3. e3 {[%clk 0:02:52.6]} 3... e6 {[%clk 0:02:53.4]}
4. Nf3 {[%clk 0:02:52.5]} 4... Bd6 {[%clk 0:02:52]} 5. Nbd2 {[%clk 0:02:52.7]}
5... O-O {[%clk 0:02:51.4]} 6. Bd3 {[%clk 0:02:52.6]} 6... c5 {[%clk 0:02:48.4]}
7. c3 {[%clk 0:02:52.9]} 7... Qc7 {[%clk 0:02:45.6]} 8. Ne5 {[%clk 0:02:39.5]}
8... Nbd7 {[%clk 0:02:41.9]} 9. Nxd7 {[%clk 0:02:38.5]} 9... Bxd7 {[%clk
0:02:38.7]} 10. Bxd6 {[%clk 0:02:29.9]} 10... Qxd6 {[%clk 0:02:38.4]} 11. O-O
{[%clk 0:02:30.7]} 11... e5 {[%clk 0:02:34.1]} 12. dxc5 {[%clk 0:02:18.5]} 12...
Qxc5 {[%clk 0:02:33.2]} 13. c4 {[%clk 0:02:19.1]} 13... dxc4 {[%clk 0:02:11.5]}
14. Bxc4 {[%clk 0:02:10.3]} 14... Bc6 {[%clk 0:02:06.9]} 15. Qb3 {[%clk
0:02:06.4]} 15... b5 {[%clk 0:01:53.1]} 16. Be2 {[%clk 0:02:05.6]} 16... Rad8
{[%clk 0:01:34.9]} 17. Rfd1 {[%clk 0:02:05.1]} 17... Qd5 {[%clk 0:01:32.9]} 18.
Qxd5 {[%clk 0:02:01.1]} 18... Rxd5 {[%clk 0:01:31.8]} 19. Nf3 {[%clk 0:01:56.9]}
19... Rxd1+ {[%clk 0:01:21.7]} 20. Rxd1 {[%clk 0:01:55.7]} 20... Bxf3 {[%clk
0:01:09.1]} 21. Bxf3 {[%clk 0:01:52.2]} 21... Rc8 {[%clk 0:01:07.9]} 22. Bb7
{[%clk 0:01:47.8]} 22... Rb8 {[%clk 0:01:04.5]} 23. Rc1 {[%clk 0:01:39.9]} 23...
Kf8 {[%clk 0:01:03.6]} 24. Rc8+ {[%clk 0:01:39.1]} 24... Rxc8 {[%clk 0:00:58.3]}
25. Bxc8 {[%clk 0:01:40]} 25... Ke7 {[%clk 0:00:57.9]} 26. b4 {[%clk 0:01:25.6]}
26... Kd6 {[%clk 0:00:56.1]} 27. Kf1 {[%clk 0:01:12.4]} 27... Nd5 {[%clk
0:00:55.5]} 28. a3 {[%clk 0:01:10.1]} 28... Nb6 {[%clk 0:00:54.5]} 29. Ba6
{[%clk 0:00:59.1]} 29... Kc6 {[%clk 0:00:53]} 30. Ke2 {[%clk 0:00:59.5]} 30...
e4 {[%clk 0:00:37.4]} 31. f3 {[%clk 0:00:56]} 31... exf3+ {[%clk 0:00:29.2]} 32.
gxf3 {[%clk 0:00:56.9]} 32... g5 {[%clk 0:00:26.2]} 33. f4 {[%clk 0:00:33.2]}
33... g4 {[%clk 0:00:20.2]} 34. e4 {[%clk 0:00:30.9]} 34... h5 {[%clk
0:00:20.1]} 35. e5 {[%clk 0:00:25]} 35... Nd5 {[%clk 0:00:18.6]} 36. f5 {[%clk
0:00:23.9]} 36... f6 {[%clk 0:00:16.2]} 37. exf6 {[%clk 0:00:20.5]} 37... Nxf6
{[%clk 0:00:16.1]} 38. Bc8 {[%clk 0:00:20.5]} 38... Kd5 {[%clk 0:00:13.8]} 39.
Kd3 {[%clk 0:00:17.7]} 39... Ke5 {[%clk 0:00:13.2]} 40. Ba6 {[%clk 0:00:16.4]}
40... h4 {[%clk 0:00:12.5]} 41. Bxb5 {[%clk 0:00:15.3]} 41... Kxf5 {[%clk
0:00:11.3]} 42. Bc6 {[%clk 0:00:13.9]} 42... Ke5 {[%clk 0:00:11]} 43. Ke3 {[%clk
0:00:13.3]} 43... Nd5+ {[%clk 0:00:09.8]} 44. Bxd5 {[%clk 0:00:12.5]} 44... Kxd5
{[%clk 0:00:10.1]} 45. Kf4 {[%clk 0:00:13.4]} 45... g3 {[%clk 0:00:10.5]} 46.
hxg3 {[%clk 0:00:12.4]} 46... hxg3 {[%clk 0:00:11]} 47. Kxg3 {[%clk 0:00:13]}
47... Kc4 {[%clk 0:00:11.4]} 48. Kf3 {[%clk 0:00:12.6]} 48... Kb3 {[%clk
0:00:11.7]} 49. Ke3 {[%clk 0:00:11.9]} 49... Kxa3 {[%clk 0:00:12]} 50. b5 {[%clk
0:00:12.1]} 50... Kb4 {[%clk 0:00:12.2]} 51. Kd4 {[%clk 0:00:12.5]} 51... Kxb5
{[%clk 0:00:12.3]} 52. Kc3 {[%clk 0:00:13.1]} 52... a5 {[%clk 0:00:12.3]} 53.
Kb3 {[%clk 0:00:13.5]} 53... a4+ {[%clk 0:00:12.7]} 54. Ka3 {[%clk 0:00:13.9]}
54... Ka5 {[%clk 0:00:13.1]} 55. Ka2 {[%clk 0:00:14.2]} 55... a3 {[%clk
0:00:13.6]} 56. Kxa3 {[%clk 0:00:15.1]} 1/2-1/2

[Event "Early-Titled-Tuesday-Blitz-October-03-2023"]
[Site "Chess.com"]
[Date "2023.10.03"]
[Round "11"]
[White "vladgoncharov"]
[Black "Frolyanov_D"]
[Result "1/2-1/2"]
[WhiteElo "2523"]
[BlackElo "2657"]
[TimeControl "180+1"]
[EndTime "10:08:22 PDT"]
[Termination "Game drawn - insufficient material"]

1. d4 {[%clk 0:03:00.9]} 1... d5 {[%clk 0:02:59.1]} 2. c4 {[%clk 0:02:59.6]}
2... e6 {[%clk 0:02:59.2]} 3. Nc3 {[%clk 0:02:58.4]} 3... c6 {[%clk 0:02:59]} 4.
e3 {[%clk 0:02:54.7]} 4... Bd6 {[%clk 0:02:58.1]} 5. Nf3 {[%clk 0:02:54.3]} 5...
f5 {[%clk 0:02:58.1]} 6. Bd3 {[%clk 0:02:54]} 6... Nf6 {[%clk 0:02:58.5]} 7. Qc2
{[%clk 0:02:53.3]} 7... O-O {[%clk 0:02:58.7]} 8. b3 {[%clk 0:02:53.4]} 8... b6
{[%clk 0:02:56.6]} 9. O-O {[%clk 0:02:52.2]} 9... Bb7 {[%clk 0:02:54.9]} 10. Bb2
{[%clk 0:02:52.4]} 10... Nbd7 {[%clk 0:02:54.5]} 11. Rac1 {[%clk 0:02:20]} 11...
Qe7 {[%clk 0:02:53.2]} 12. a4 {[%clk 0:02:15.1]} 12... Rac8 {[%clk 0:02:50.3]}
13. a5 {[%clk 0:02:07.1]} 13... c5 {[%clk 0:02:50.2]} 14. axb6 {[%clk
0:02:05.5]} 14... axb6 {[%clk 0:02:51.1]} 15. Ra1 {[%clk 0:01:57.9]} 15... dxc4
{[%clk 0:02:50.3]} 16. Bxc4 {[%clk 0:01:54.9]} 16... Bxf3 {[%clk 0:02:49.8]} 17.
gxf3 {[%clk 0:01:52.6]} 17... cxd4 {[%clk 0:02:50]} 18. Nb5 {[%clk 0:01:52.6]}
18... Ne5 {[%clk 0:02:44.1]} 19. Nxd4 {[%clk 0:01:41.4]} 19... b5 {[%clk
0:02:21.1]} 20. Bxe6+ {[%clk 0:01:28.1]} 20... Qxe6 {[%clk 0:02:20.8]} 21. Nxe6
{[%clk 0:01:28.4]} 21... Rxc2 {[%clk 0:02:20.1]} 22. Nxf8 {[%clk 0:01:27.6]}
22... Rxb2 {[%clk 0:02:18]} 23. Ne6 {[%clk 0:01:27.7]} 23... Nxf3+ {[%clk
0:02:16.5]} 24. Kg2 {[%clk 0:01:26.6]} 24... Nxh2 {[%clk 0:01:41.3]} 25. Rfb1
{[%clk 0:01:22.1]} 25... Rxb1 {[%clk 0:01:37.9]} 26. Rxb1 {[%clk 0:01:21.9]}
26... Nhg4 {[%clk 0:01:34.7]} 27. Nd4 {[%clk 0:01:21.5]} 27... b4 {[%clk
0:01:02.6]} 28. Nxf5 {[%clk 0:01:21.3]} 28... Be5 {[%clk 0:01:00.2]} 29. Rd1
{[%clk 0:01:16.3]} 29... g6 {[%clk 0:00:57.7]} 30. Rd8+ {[%clk 0:01:09.3]} 30...
Kf7 {[%clk 0:00:55.5]} 31. Ng3 {[%clk 0:01:06]} 31... Bxg3 {[%clk 0:00:52.3]}
32. Kxg3 {[%clk 0:01:05.6]} 32... Ne5 {[%clk 0:00:51.8]} 33. Rb8 {[%clk
0:01:03.1]} 33... Nd3 {[%clk 0:00:49.2]} 34. Rb7+ {[%clk 0:01:01.7]} 34... Ke6
{[%clk 0:00:46.4]} 35. f3 {[%clk 0:01:00.8]} 35... h5 {[%clk 0:00:43.7]} 36. Kh4
{[%clk 0:00:56.4]} 36... Nd5 {[%clk 0:00:40.4]} 37. Kg5 {[%clk 0:00:51.4]} 37...
Nxe3 {[%clk 0:00:37.5]} 38. Rb6+ {[%clk 0:00:51.1]} 38... Kd5 {[%clk 0:00:34.8]}
39. Rxg6 {[%clk 0:00:49.5]} 39... Kd4 {[%clk 0:00:22.6]} 40. f4 {[%clk
0:00:40.1]} 40... h4 {[%clk 0:00:16.2]} 41. f5 {[%clk 0:00:39.3]} 41... h3
{[%clk 0:00:15.9]} 42. Rh6 {[%clk 0:00:37]} 42... Nd5 {[%clk 0:00:03]} 43. Rxh3
{[%clk 0:00:35.6]} 43... Nc5 {[%clk 0:00:02.8]} 44. f6 {[%clk 0:00:35.6]} 44...
Ne4+ {[%clk 0:00:03]} 45. Kf5 {[%clk 0:00:34.9]} 45... Nexf6 {[%clk 0:00:03.2]}
46. Rg3 {[%clk 0:00:26.1]} 46... Kc5 {[%clk 0:00:04.1]} 47. Ke5 {[%clk
0:00:25.6]} 47... Nd7+ {[%clk 0:00:04.2]} 48. Ke6 {[%clk 0:00:24.1]} 48... N7b6
{[%clk 0:00:05.1]} 49. Ke5 {[%clk 0:00:23.8]} 49... Nc3 {[%clk 0:00:05.2]} 50.
Rg5 {[%clk 0:00:21.1]} 50... Nbd5 {[%clk 0:00:05.3]} 51. Ke6 {[%clk 0:00:21.1]}
51... Kd4 {[%clk 0:00:05.2]} 52. Rg4+ {[%clk 0:00:19.6]} 52... Kd3 {[%clk
0:00:05.5]} 53. Kd6 {[%clk 0:00:19.9]} 53... Kc2 {[%clk 0:00:05.7]} 54. Kc5
{[%clk 0:00:19.4]} 54... Kb2 {[%clk 0:00:04.1]} 55. Rxb4 {[%clk 0:00:17.9]}
55... Nxb4 {[%clk 0:00:05]} 56. Kxb4 {[%clk 0:00:18]} 56... Na2+ {[%clk
0:00:05]} 57. Kc4 {[%clk 0:00:18]} 57... Ka3 {[%clk 0:00:05.9]} 58. b4 {[%clk
0:00:18.3]} 58... Nxb4 {[%clk 0:00:06.8]} 1/2-1/2

[Event "Early-Titled-Tuesday-Blitz-October-03-2023"]
[Site "Chess.com"]
[Date "2023.10.03"]
[Round "11"]
[White "Polish_fighter3000"]
[Black "Murad_Ibrahimli"]
[Result "1-0"]
[WhiteElo "3074"]
[BlackElo "2911"]
[TimeControl "180+1"]
[EndTime "10:08:23 PDT"]
[Termination "Polish_fighter3000 won by resignation"]

1. g4 {[%clk 0:03:00.9]} 1... d5 {[%clk 0:02:59.7]} 2. Bg2 {[%clk 0:02:59]} 2...
c6 {[%clk 0:03:00]} 3. h3 {[%clk 0:02:58.1]} 3... g6 {[%clk 0:02:58.9]} 4. f4
{[%clk 0:02:56.9]} 4... h5 {[%clk 0:02:57.8]} 5. g5 {[%clk 0:02:56.7]} 5... e5
{[%clk 0:02:57.7]} 6. d4 {[%clk 0:02:51.9]} 6... e4 {[%clk 0:02:55.9]} 7. h4
{[%clk 0:02:48.6]} 7... Ne7 {[%clk 0:02:56.1]} 8. e3 {[%clk 0:02:47.3]} 8... Nf5
{[%clk 0:02:56.7]} 9. Ne2 {[%clk 0:02:43.7]} 9... c5 {[%clk 0:02:56.7]} 10. c3
{[%clk 0:02:42.2]} 10... Nc6 {[%clk 0:02:55.4]} 11. Kf2 {[%clk 0:02:42.4]} 11...
Be6 {[%clk 0:02:54.2]} 12. Ng3 {[%clk 0:02:34.4]} 12... Nxg3 {[%clk 0:02:46.1]}
13. Kxg3 {[%clk 0:02:35.3]} 13... Ne7 {[%clk 0:02:46.2]} 14. Qa4+ {[%clk
0:02:32.4]} 14... Bd7 {[%clk 0:02:45.6]} 15. Qb3 {[%clk 0:02:33]} 15... Nf5+
{[%clk 0:02:45.7]} 16. Kf2 {[%clk 0:02:33.2]} 16... Bc6 {[%clk 0:02:44.9]} 17.
Nd2 {[%clk 0:02:30.3]} 17... a5 {[%clk 0:02:41.6]} 18. a4 {[%clk 0:02:29.2]}
18... Be7 {[%clk 0:02:33.8]} 19. Nf1 {[%clk 0:02:27.8]} 19... cxd4 {[%clk
0:02:33.3]} 20. cxd4 {[%clk 0:02:24.2]} 20... f6 {[%clk 0:02:23.2]} 21. Bd2
{[%clk 0:02:09.3]} 21... fxg5 {[%clk 0:02:21.2]} 22. hxg5 {[%clk 0:02:10.2]}
22... O-O {[%clk 0:02:21.2]} 23. Kg1 {[%clk 0:02:07.4]} 23... Kg7 {[%clk
0:02:10.6]} 24. Rh2 {[%clk 0:02:04.4]} 24... Ra6 {[%clk 0:01:56.3]} 25. Qd1
{[%clk 0:01:56]} 25... Bb4 {[%clk 0:01:53]} 26. Kf2 {[%clk 0:01:47.3]} 26... Rb6
{[%clk 0:01:46.4]} 27. Ng3 {[%clk 0:01:45.2]} 27... Nxg3 {[%clk 0:01:08.7]} 28.
Kxg3 {[%clk 0:01:42.4]} 28... Bd6 {[%clk 0:01:07.2]} 29. Kh4 {[%clk 0:01:19.1]}
29... Rxb2 {[%clk 0:01:06.5]} 30. Bh3 {[%clk 0:01:17.3]} 30... Bd7 {[%clk
0:00:55.3]} 31. Rb1 {[%clk 0:01:04.8]} 31... Bxa4 {[%clk 0:00:47.3]} 32. Qe1
{[%clk 0:00:44.5]} 32... Rxb1 {[%clk 0:00:45.9]} 33. Qxb1 {[%clk 0:00:45.4]}
33... Bc6 {[%clk 0:00:44]} 34. Qa2 {[%clk 0:00:35.1]} 34... a4 {[%clk
0:00:42.2]} 35. Be6 {[%clk 0:00:33.8]} 35... Be7 {[%clk 0:00:38.1]} 36. Rg2
{[%clk 0:00:21.1]} 36... Qd6 {[%clk 0:00:38.5]} 37. Bh3 {[%clk 0:00:21.4]} 37...
Qa3 {[%clk 0:00:39.1]} 38. Qb1 {[%clk 0:00:19.2]} 38... Qd3 {[%clk 0:00:39.6]}
39. Qe1 {[%clk 0:00:16.4]} 39... a3 {[%clk 0:00:32.8]} 40. f5 {[%clk 0:00:16.4]}
40... gxf5 {[%clk 0:00:33]} 41. Qg3 {[%clk 0:00:16.4]} 41... f4 {[%clk
0:00:31.3]} 42. exf4 {[%clk 0:00:07.1]} 42... Qxg3+ {[%clk 0:00:30.9]} 43. Rxg3
{[%clk 0:00:07.3]} 43... a2 {[%clk 0:00:29.7]} 44. Rg1 {[%clk 0:00:07.9]} 44...
Ra8 {[%clk 0:00:08.3]} 45. Ra1 {[%clk 0:00:07.9]} 45... Ra3 {[%clk 0:00:05.4]}
46. f5 {[%clk 0:00:07.9]} 46... Bd6 {[%clk 0:00:03.4]} 47. Bf1 {[%clk
0:00:03.3]} 47... e3 {[%clk 0:00:02.7]} 48. Bc1 {[%clk 0:00:02.3]} 48... Bf4
{[%clk 0:00:02.8]} 49. Bxa3 {[%clk 0:00:01.9]} 1-0

[Event "Early-Titled-Tuesday-Blitz-October-03-2023"]
[Site "Chess.com"]
[Date "2023.10.03"]
[Round "11"]
[White "GeorgiosSouleidis"]
[Black "Goi_Manne"]
[Result "1/2-1/2"]
[WhiteElo "2547"]
[BlackElo "2297"]
[TimeControl "180+1"]
[EndTime "10:08:25 PDT"]
[Termination "Game drawn by repetition"]

1. e4 {[%clk 0:03:00.9]} 1... c6 {[%clk 0:03:00.5]} 2. Nc3 {[%clk 0:03:00.7]}
2... d5 {[%clk 0:03:01]} 3. Nf3 {[%clk 0:03:01.6]} 3... dxe4 {[%clk 0:03:01.3]}
4. Nxe4 {[%clk 0:03:02.5]} 4... Nf6 {[%clk 0:03:01.9]} 5. Qe2 {[%clk 0:03:03]}
5... Nxe4 {[%clk 0:03:02]} 6. Qxe4 {[%clk 0:03:03.9]} 6... Qd5 {[%clk
0:03:02.7]} 7. Qh4 {[%clk 0:03:03.2]} 7... Qe6+ {[%clk 0:03:01.3]} 8. Be2 {[%clk
0:03:03.5]} 8... Qg4 {[%clk 0:03:01.9]} 9. Qg3 {[%clk 0:03:03.8]} 9... Qxg3
{[%clk 0:03:01.7]} 10. hxg3 {[%clk 0:03:04.7]} 10... Bf5 {[%clk 0:03:01.2]} 11.
c3 {[%clk 0:02:57.5]} 11... e6 {[%clk 0:03:00.9]} 12. d4 {[%clk 0:02:57.7]}
12... Be7 {[%clk 0:03:00]} 13. Ne5 {[%clk 0:02:56.2]} 13... Nd7 {[%clk
0:02:58.6]} 14. g4 {[%clk 0:02:53.7]} 14... Be4 {[%clk 0:02:42.9]} 15. Nxd7
{[%clk 0:02:49.7]} 15... Kxd7 {[%clk 0:02:43.8]} 16. f3 {[%clk 0:02:50.2]} 16...
Bg6 {[%clk 0:02:43.4]} 17. Be3 {[%clk 0:02:47.7]} 17... h5 {[%clk 0:02:37.6]}
18. gxh5 {[%clk 0:02:44.9]} 18... Rxh5 {[%clk 0:02:38.5]} 19. Kf2 {[%clk
0:02:41.5]} 19... Rah8 {[%clk 0:02:36.9]} 20. Rxh5 {[%clk 0:02:40.2]} 20... Rxh5
{[%clk 0:02:37.5]} 21. Bf4 {[%clk 0:02:16.2]} 21... Bd6 {[%clk 0:02:27.4]} 22.
Bxd6 {[%clk 0:02:15]} 22... Kxd6 {[%clk 0:02:28.3]} 23. Rd1 {[%clk 0:02:05.8]}
23... b5 {[%clk 0:02:19.6]} 24. b4 {[%clk 0:01:54.9]} 24... Rh8 {[%clk 0:02:09]}
25. Rd2 {[%clk 0:01:33.5]} 25... Ra8 {[%clk 0:02:07.2]} 26. a4 {[%clk
0:01:26.2]} 26... a6 {[%clk 0:02:01]} 27. Ra2 {[%clk 0:01:21.2]} 27... Rc8
{[%clk 0:01:46.6]} 28. axb5 {[%clk 0:01:18.5]} 28... axb5 {[%clk 0:01:47.5]} 29.
Ra6 {[%clk 0:01:17.3]} 29... Kd7 {[%clk 0:01:37.3]} 30. Ke3 {[%clk 0:01:14.4]}
30... Bc2 {[%clk 0:01:36.6]} 31. f4 {[%clk 0:01:11.2]} 31... Ba4 {[%clk
0:01:35.6]} 32. c4 {[%clk 0:00:50.7]} 32... Rc7 {[%clk 0:01:19.5]} 33. Ra5
{[%clk 0:00:41.8]} 33... Rb7 {[%clk 0:01:12.9]} 34. Bf3 {[%clk 0:00:37.8]} 34...
Rc7 {[%clk 0:00:37.3]} 35. Ra6 {[%clk 0:00:32.8]} 35... Bb3 {[%clk 0:00:25.8]}
36. c5 {[%clk 0:00:32.8]} 36... Ba4 {[%clk 0:00:21.6]} 37. g4 {[%clk 0:00:31.2]}
37... f6 {[%clk 0:00:20.3]} 38. g5 {[%clk 0:00:30.8]} 38... f5 {[%clk
0:00:19.3]} 39. Kf2 {[%clk 0:00:21.5]} 39... Bb3 {[%clk 0:00:18.3]} 40. Kg3
{[%clk 0:00:20.1]} 40... Bd5 {[%clk 0:00:17.3]} 41. Bxd5 {[%clk 0:00:19.4]}
41... exd5 {[%clk 0:00:18.2]} 42. Ra8 {[%clk 0:00:14.1]} 42... Rc8 {[%clk
0:00:16.9]} 43. Ra7+ {[%clk 0:00:06.6]} 43... Rc7 {[%clk 0:00:16.2]} 44. Ra6
{[%clk 0:00:06.9]} 44... Ke7 {[%clk 0:00:15.3]} 45. Kh4 {[%clk 0:00:05.5]} 45...
g6 {[%clk 0:00:15.8]} 46. Kg3 {[%clk 0:00:05.5]} 46... Kd7 {[%clk 0:00:15.9]}
47. Kf3 {[%clk 0:00:06]} 47... Rc8 {[%clk 0:00:15.7]} 48. Ra7+ {[%clk
0:00:05.9]} 48... Rc7 {[%clk 0:00:16.2]} 49. Ra1 {[%clk 0:00:04.8]} 49... Rc8
{[%clk 0:00:15]} 50. Rh1 {[%clk 0:00:05]} 50... Re8 {[%clk 0:00:13.8]} 51. Rh7+
{[%clk 0:00:05]} 51... Re7 {[%clk 0:00:14.2]} 52. Rh6 {[%clk 0:00:05.1]} 52...
Re6 {[%clk 0:00:14.6]} 53. Kg3 {[%clk 0:00:04.3]} 53... Kd8 {[%clk 0:00:14.3]}
54. Rh8+ {[%clk 0:00:04.3]} 54... Re8 {[%clk 0:00:13.8]} 55. Rxe8+ {[%clk
0:00:03.2]} 55... Kxe8 {[%clk 0:00:14.7]} 56. Kf3 {[%clk 0:00:03.2]} 56... Ke7
{[%clk 0:00:15.3]} 57. Ke3 {[%clk 0:00:04.1]} 57... Kd7 {[%clk 0:00:16.2]} 58.
Kf3 {[%clk 0:00:04]} 58... Ke7 {[%clk 0:00:17.1]} 59. Ke3 {[%clk 0:00:04.9]}
59... Kd7 {[%clk 0:00:17.9]} 60. Kf3 {[%clk 0:00:05.8]} 60... Ke7 {[%clk
0:00:18.5]} 1/2-1/2

[Event "Early-Titled-Tuesday-Blitz-October-03-2023"]
[Site "Chess.com"]
[Date "2023.10.03"]
[Round "11"]
[White "Shuvalov"]
[Black "sonicdravise"]
[Result "0-1"]
[WhiteElo "2476"]
[BlackElo "2658"]
[TimeControl "180+1"]
[EndTime "10:08:27 PDT"]
[Termination "sonicdravise won by resignation"]

1. d4 {[%clk 0:03:00.9]} 1... g6 {[%clk 0:02:57.7]} 2. c4 {[%clk 0:03:00.9]}
2... Bg7 {[%clk 0:02:58.4]} 3. e4 {[%clk 0:03:01.3]} 3... c5 {[%clk 0:02:56.4]}
4. Nf3 {[%clk 0:02:57.6]} 4... Nc6 {[%clk 0:02:55.4]} 5. Be3 {[%clk 0:02:54.8]}
5... Qa5+ {[%clk 0:02:50.7]} 6. Nc3 {[%clk 0:02:53.5]} 6... d6 {[%clk
0:02:49.1]} 7. h3 {[%clk 0:02:51.5]} 7... Nf6 {[%clk 0:02:46.1]} 8. Qd2 {[%clk
0:02:42.9]} 8... cxd4 {[%clk 0:02:17]} 9. Nxd4 {[%clk 0:02:43.8]} 9... Nxd4
{[%clk 0:02:17.3]} 10. Bxd4 {[%clk 0:02:44.7]} 10... Nxe4 {[%clk 0:02:12.7]} 11.
Nxe4 {[%clk 0:02:30]} 11... Qxd2+ {[%clk 0:02:12.2]} 12. Nxd2 {[%clk 0:02:30.9]}
12... Bxd4 {[%clk 0:02:12.6]} 13. O-O-O {[%clk 0:02:14.9]} 13... Bxf2 {[%clk
0:02:12.4]} 14. Bd3 {[%clk 0:02:12.3]} 14... Be6 {[%clk 0:01:55.7]} 15. Kb1
{[%clk 0:02:11.9]} 15... Bd4 {[%clk 0:01:27]} 16. Nf3 {[%clk 0:02:06.5]} 16...
Bf6 {[%clk 0:01:25.7]} 17. b3 {[%clk 0:02:03.4]} 17... O-O {[%clk 0:01:24.4]}
18. Be4 {[%clk 0:02:02.5]} 18... Rab8 {[%clk 0:01:23.5]} 19. Nd4 {[%clk
0:02:01.8]} 19... Bd7 {[%clk 0:01:17.4]} 20. Rhe1 {[%clk 0:01:58.9]} 20... Rfc8
{[%clk 0:01:06.5]} 21. Re2 {[%clk 0:01:47.9]} 21... a6 {[%clk 0:01:00.7]} 22.
Ree1 {[%clk 0:01:26.5]} 22... b5 {[%clk 0:00:58.1]} 23. cxb5 {[%clk 0:01:26.5]}
23... axb5 {[%clk 0:00:58.1]} 24. Nc2 {[%clk 0:01:25.8]} 24... b4 {[%clk
0:00:51.6]} 25. Ne3 {[%clk 0:01:23]} 25... Bc3 {[%clk 0:00:44.8]} 26. Re2 {[%clk
0:01:23.1]} 26... Bb5 {[%clk 0:00:36.3]} 27. Bd3 {[%clk 0:01:22]} 27... e6
{[%clk 0:00:13.2]} 28. Bxb5 {[%clk 0:01:17.5]} 28... Rxb5 {[%clk 0:00:14.1]} 29.
Rxd6 {[%clk 0:01:15.2]} 29... Re5 {[%clk 0:00:14.5]} 30. Rd3 {[%clk 0:01:08.2]}
30... f5 {[%clk 0:00:14.9]} 31. Rc2 {[%clk 0:01:06.4]} 31... f4 {[%clk
0:00:12.5]} 32. Nc4 {[%clk 0:01:05.9]} 32... Re1+ {[%clk 0:00:12.6]} 33. Rc1
{[%clk 0:01:06.2]} 33... Re2 {[%clk 0:00:11.7]} 34. Rc2 {[%clk 0:01:02.1]} 34...
Re1+ {[%clk 0:00:12.1]} 35. Rc1 {[%clk 0:01:02.4]} 35... Rxc1+ {[%clk
0:00:12.4]} 36. Kxc1 {[%clk 0:01:02.6]} 36... e5 {[%clk 0:00:12.7]} 37. Rd7
{[%clk 0:00:55.4]} 37... e4 {[%clk 0:00:10.3]} 38. Kd1 {[%clk 0:00:53.8]} 38...
Re8 {[%clk 0:00:06]} 39. Ke2 {[%clk 0:00:53]} 39... Ra8 {[%clk 0:00:05.7]} 40.
Re7 {[%clk 0:00:41.7]} 40... Rxa2+ {[%clk 0:00:05.8]} 41. Kd1 {[%clk 0:00:42.1]}
41... e3 {[%clk 0:00:04.6]} 42. Nb6 {[%clk 0:00:36.9]} 42... Ra1+ {[%clk
0:00:03]} 43. Kc2 {[%clk 0:00:37.1]} 43... Ra2+ {[%clk 0:00:03.5]} 44. Kd1
{[%clk 0:00:33.4]} 44... Rxg2 {[%clk 0:00:04.4]} 45. Nd5 {[%clk 0:00:32.2]}
45... Rg1+ {[%clk 0:00:04.2]} 46. Kc2 {[%clk 0:00:31.4]} 46... Rg2+ {[%clk
0:00:04.5]} 47. Kd3 {[%clk 0:00:27.8]} 47... Rd2+ {[%clk 0:00:04.9]} 48. Kc4
{[%clk 0:00:28.1]} 48... Rd4+ {[%clk 0:00:05.1]} 49. Kc5 {[%clk 0:00:28]} 49...
Rxd5+ {[%clk 0:00:04.8]} 50. Kxd5 {[%clk 0:00:28.9]} 50... Bd2 {[%clk
0:00:05.4]} 51. Ke4 {[%clk 0:00:20.7]} 51... e2 {[%clk 0:00:05.6]} 52. Kf3
{[%clk 0:00:18.9]} 52... e1=Q {[%clk 0:00:05.5]} 53. Rxe1 {[%clk 0:00:19.8]}
53... Bxe1 {[%clk 0:00:06.4]} 54. Kxf4 {[%clk 0:00:20.7]} 54... Bc3 {[%clk
0:00:06.8]} 55. Ke4 {[%clk 0:00:20.3]} 55... Kf7 {[%clk 0:00:07.4]} 56. Kd5
{[%clk 0:00:20.6]} 56... Kf6 {[%clk 0:00:08]} 57. Ke4 {[%clk 0:00:20.8]} 57...
Kg5 {[%clk 0:00:08.6]} 58. Kf3 {[%clk 0:00:21.3]} 58... Kh4 {[%clk 0:00:09.4]}
59. Kg2 {[%clk 0:00:21.9]} 59... Be5 {[%clk 0:00:08.7]} 0-1